[Event "December 19 Early 2023"]
[Site "https://www.chess.com"]
[Date "2023.12.19"]
[Round "10"]
[White "Ljukin, Sergei"]
[Black "Cristobal, Manuel"]
[Result "0-1"]
[Board "53"]
[TimeControl "180+1"]
[WhiteFideId "14102200"]
[BlackFideId "112879"]
[WhiteElo "2319"]
[BlackElo "2244"]
[WhiteTeam "UKR"]
[BlackTeam "ARG"]
[WhiteClock "0:00:07"]
[BlackClock "0:01:19"]

1. e4 {[%clk 0:03:00]}  Nc6 {[%clk 0:02:59]} 2. Nf3 {[%clk 0:03:00]}  d5 {[%clk 0:02:57]} 3. exd5 {[%clk 0:03:01]}  Qxd5 {[%clk 0:02:57]} 4. Nc3 {[%clk 0:03:01]}  Qh5 {[%clk 0:02:57]} 5. Nb5 {[%clk 0:03:01]}  Kd8 {[%clk 0:02:57]} 6. d4 {[%clk 0:03:01]}  Bg4 {[%clk 0:02:57]} 7. Be2 {[%clk 0:03:00]}  Bxf3 {[%clk 0:02:56]} 8. gxf3 {[%clk 0:02:59]}  a6 {[%clk 0:02:56]} 9. Nc3 {[%clk 0:02:58]}  Nf6 {[%clk 0:02:55]} 10. Bf4 {[%clk 0:02:50]}  e6 {[%clk 0:02:44]} 11. Qd2 {[%clk 0:02:45]}  Bb4 {[%clk 0:02:43]} 12. Bg5 {[%clk 0:02:32]}  Kc8 {[%clk 0:02:40]} 13. Bxf6 {[%clk 0:02:26]}  gxf6 {[%clk 0:02:38]} 14. O-O-O {[%clk 0:02:25]}  Rd8 {[%clk 0:02:37]} 15. Qe3 {[%clk 0:02:25]}  Qa5 {[%clk 0:02:35]} 16. a3 {[%clk 0:02:21]}  Bxc3 {[%clk 0:02:34]} 17. Qxc3 {[%clk 0:02:21]}  Qxc3 {[%clk 0:02:34]} 18. bxc3 {[%clk 0:02:22]}  Ne7 {[%clk 0:02:35]} 19. Rdg1 {[%clk 0:02:17]}  Nd5 {[%clk 0:02:31]} 20. Kb2 {[%clk 0:02:09]}  Kd7 {[%clk 0:02:02]} 21. Rg7 {[%clk 0:02:08]}  Ke7 {[%clk 0:02:02]} 22. Rxh7 {[%clk 0:01:42]}  Rg8 {[%clk 0:02:00]} 23. Bf1 {[%clk 0:01:23]}  b5 {[%clk 0:01:55]} 24. h4 {[%clk 0:01:16]}  c5 {[%clk 0:01:52]} 25. dxc5 {[%clk 0:01:07]}  Rac8 {[%clk 0:01:50]} 26. c4 {[%clk 0:01:04]}  bxc4 {[%clk 0:01:48]} 27. Bxc4 {[%clk 0:01:04]}  Rxc5 {[%clk 0:01:49]} 28. Bb3 {[%clk 0:00:43]}  Nf4 {[%clk 0:01:46]} 29. h5 {[%clk 0:00:39]}  f5 {[%clk 0:01:46]} 30. Rh4 {[%clk 0:00:20]}  Ng2 {[%clk 0:01:40]} 31. Rb4 {[%clk 0:00:19]}  Kf6 {[%clk 0:01:40]} 32. Rb7 {[%clk 0:00:19]}  Rf8 {[%clk 0:01:39]} 33. Ra7 {[%clk 0:00:17]}  Rc6 {[%clk 0:01:39]} 34. a4 {[%clk 0:00:17]}  Nf4 {[%clk 0:01:37]} 35. c4 {[%clk 0:00:16]}  Rd6 {[%clk 0:01:36]} 36. Kc3 {[%clk 0:00:15]}  Rd3+ {[%clk 0:01:36]} 37. Kc2 {[%clk 0:00:14]}  Rxf3 {[%clk 0:01:36]} 38. c5 {[%clk 0:00:13]}  Nd3 {[%clk 0:01:33]} 39. Rc7 {[%clk 0:00:10]}  Nb4+ {[%clk 0:01:32]} 40. Kb2 {[%clk 0:00:09]}  Rxf2+ {[%clk 0:01:32]} 41. Kc3 {[%clk 0:00:09]}  a5 {[%clk 0:01:33]} 42. Kc4 {[%clk 0:00:08]}  Rb8 {[%clk 0:01:28]} 43. Rhxf7+ {[%clk 0:00:08]}  Ke5 {[%clk 0:01:28]} 44. h6 {[%clk 0:00:07]}  Rf4+ {[%clk 0:01:27]} 45. Kc3 {[%clk 0:00:07]}  Rf3+ {[%clk 0:01:27]} 46. Kc4 {[%clk 0:00:08]}  Nd5 {[%clk 0:01:20]} 47. Rcd7 {[%clk 0:00:07]}  Rb4# {[%clk 0:01:19]} 0-1

[Event "December 19 Early 2023"]
[Site "https://www.chess.com"]
[Date "2023.12.19"]
[Round "10"]
[White "Manukyan, Sargis V."]
[Black "Timerkhanov, Alexander"]
[Result "1-0"]
[Board "54"]
[TimeControl "180+1"]
[WhiteFideId "13303465"]
[BlackFideId "24177938"]
[WhiteElo "2236"]
[BlackElo "2278"]
[WhiteTeam "ARM"]
[BlackTeam "RUS"]
[WhiteClock "0:01:26"]
[BlackClock "0:01:23"]

1. d4 {[%clk 0:03:00]}  d5 {[%clk 0:03:00]} 2. c4 {[%clk 0:03:00]}  dxc4 {[%clk 0:02:59]} 3. e3 {[%clk 0:03:00]}  Be6 {[%clk 0:02:58]} 4. Ne2 {[%clk 0:02:51]}  c5 {[%clk 0:02:56]} 5. Nf4 {[%clk 0:02:50]}  Qd7 {[%clk 0:02:50]} 6. d5 {[%clk 0:02:45]}  Bf5 {[%clk 0:02:50]} 7. Bxc4 {[%clk 0:02:40]}  Nf6 {[%clk 0:02:51]} 8. Nc3 {[%clk 0:02:39]}  a6 {[%clk 0:02:50]} 9. a4 {[%clk 0:02:25]}  g6 {[%clk 0:02:49]} 10. O-O {[%clk 0:02:22]}  Bg7 {[%clk 0:02:49]} 11. f3 {[%clk 0:02:18]}  g5 {[%clk 0:02:07]} 12. Nd3 {[%clk 0:02:00]}  Bxd3 {[%clk 0:02:06]} 13. Qxd3 {[%clk 0:02:01]}  Qd6 {[%clk 0:02:01]} 14. e4 {[%clk 0:01:53]}  h6 {[%clk 0:02:00]} 15. f4 {[%clk 0:01:54]}  Ng4 {[%clk 0:01:41]} 16. e5 {[%clk 0:01:50]}  Qc7 {[%clk 0:01:34]} 17. h3 {[%clk 0:01:45]}  gxf4 {[%clk 0:01:27]} 18. d6 {[%clk 0:01:40]}  exd6 {[%clk 0:01:27]} 19. exd6 {[%clk 0:01:41]}  Bd4+ {[%clk 0:01:27]} 20. Qxd4 {[%clk 0:01:35]}  cxd4 {[%clk 0:01:28]} 21. dxc7 {[%clk 0:01:35]}  Nc6 {[%clk 0:01:23]} 22. Nd5 {[%clk 0:01:26]} 1-0

[Event "December 19 Early 2023"]
[Site "https://www.chess.com"]
[Date "2023.12.19"]
[Round "10"]
[White "Gontcharov, Vladislav"]
[Black "Nilsson, Joakim"]
[Result "1/2-1/2"]
[Board "55"]
[TimeControl "180+1"]
[WhiteFideId "4123492"]
[BlackFideId "1723383"]
[WhiteElo "2420"]
[BlackElo "2143"]
[WhiteTeam "RUS"]
[BlackTeam "SWE"]
[WhiteClock "0:00:12"]
[BlackClock "0:00:04"]

1. d4 {[%clk 0:03:00]}  Nf6 {[%clk 0:03:00]} 2. c4 {[%clk 0:03:00]}  e6 {[%clk 0:03:00]} 3. Nf3 {[%clk 0:02:55]}  Bb4+ {[%clk 0:02:59]} 4. Bd2 {[%clk 0:02:55]}  c5 {[%clk 0:03:00]} 5. Bxb4 {[%clk 0:02:53]}  cxb4 {[%clk 0:03:01]} 6. g3 {[%clk 0:02:52]}  d6 {[%clk 0:03:01]} 7. Bg2 {[%clk 0:02:52]}  O-O {[%clk 0:03:02]} 8. O-O {[%clk 0:02:51]}  Nc6 {[%clk 0:03:02]} 9. a3 {[%clk 0:02:50]}  bxa3 {[%clk 0:03:03]} 10. Rxa3 {[%clk 0:02:50]}  e5 {[%clk 0:03:03]} 11. d5 {[%clk 0:02:44]}  Nb4 {[%clk 0:03:02]} 12. Nc3 {[%clk 0:02:42]}  a5 {[%clk 0:02:57]} 13. Qd2 {[%clk 0:02:31]}  Bf5 {[%clk 0:02:53]} 14. Nh4 {[%clk 0:02:27]}  Bg6 {[%clk 0:02:47]} 15. Nxg6 {[%clk 0:02:24]}  hxg6 {[%clk 0:02:47]} 16. Rfa1 {[%clk 0:02:21]}  Nd7 {[%clk 0:02:46]} 17. Nb5 {[%clk 0:02:18]}  Nc5 {[%clk 0:02:45]} 18. h4 {[%clk 0:02:07]}  Qb6 {[%clk 0:02:44]} 19. Bf3 {[%clk 0:01:50]}  Ra6 {[%clk 0:02:42]} 20. h5 {[%clk 0:01:49]}  gxh5 {[%clk 0:02:42]} 21. Bxh5 {[%clk 0:01:48]}  g6 {[%clk 0:02:40]} 22. Bf3 {[%clk 0:01:47]}  Kg7 {[%clk 0:02:40]} 23. Kg2 {[%clk 0:01:42]}  Rh8 {[%clk 0:02:40]} 24. e3 {[%clk 0:01:18]}  Raa8 {[%clk 0:02:28]} 25. Qc3 {[%clk 0:01:18]}  f6 {[%clk 0:01:50]} 26. Rh1 {[%clk 0:01:11]}  Rxh1 {[%clk 0:01:46]} 27. Kxh1 {[%clk 0:01:12]}  Rh8+ {[%clk 0:01:17]} 28. Kg2 {[%clk 0:01:12]}  Ncd3 {[%clk 0:01:16]} 29. Ra1 {[%clk 0:01:04]}  f5 {[%clk 0:01:04]} 30. Be2 {[%clk 0:01:01]}  Nc5 {[%clk 0:01:01]} 31. Bf3 {[%clk 0:00:55]}  Ncd3 {[%clk 0:01:00]} 32. Rd1 {[%clk 0:00:51]}  Nc5 {[%clk 0:00:58]} 33. Kg1 {[%clk 0:00:48]}  Qd8 {[%clk 0:00:47]} 34. Bg2 {[%clk 0:00:45]}  b6 {[%clk 0:00:40]} 35. f4 {[%clk 0:00:45]}  Kg8 {[%clk 0:00:13]} 36. fxe5 {[%clk 0:00:43]}  Qg5 {[%clk 0:00:13]} 37. Nxd6 {[%clk 0:00:29]}  Qxg3 {[%clk 0:00:12]} 38. Qe1 {[%clk 0:00:29]}  Qh2+ {[%clk 0:00:11]} 39. Kf1 {[%clk 0:00:28]}  Rh4 {[%clk 0:00:10]} 40. Qf2 {[%clk 0:00:23]}  Ncd3 {[%clk 0:00:09]} 41. Qg1 {[%clk 0:00:22]}  Qg3 {[%clk 0:00:09]} 42. Ne8 {[%clk 0:00:18]}  Rh2 {[%clk 0:00:07]} 43. Nf6+ {[%clk 0:00:17]}  Kg7 {[%clk 0:00:07]} 44. d6 {[%clk 0:00:17]}  Rxg2 {[%clk 0:00:04]} 45. Qxg2 {[%clk 0:00:16]}  Qxe3 {[%clk 0:00:05]} 46. Ne8+ {[%clk 0:00:12]}  Kf8 {[%clk 0:00:03]} 47. d7 {[%clk 0:00:13]}  Qf4+ {[%clk 0:00:03]} 48. Kg1 {[%clk 0:00:13]}  Qe3+ {[%clk 0:00:03]} 49. Kh1 {[%clk 0:00:13]}  Qh6+ {[%clk 0:00:03]} 50. Qh2 {[%clk 0:00:11]}  Qe3 {[%clk 0:00:03]} 51. Qh8+ {[%clk 0:00:11]}  Ke7 {[%clk 0:00:02]} 52. Qf6+ {[%clk 0:00:11]}  Kxd7 {[%clk 0:00:02]} 53. Qd6+ {[%clk 0:00:11]}  Kxe8 {[%clk 0:00:02]} 54. e6 {[%clk 0:00:12]}  Qf3+ {[%clk 0:00:01]} 55. Kh2 {[%clk 0:00:12]}  Qf2+ {[%clk 0:00:02]} 56. Kh3 {[%clk 0:00:12]}  Qf3+ {[%clk 0:00:03]} 57. Kh2 {[%clk 0:00:12]}  Qf2+ {[%clk 0:00:03]} 58. Kh1 {[%clk 0:00:12]}  Qf3+ {[%clk 0:00:04]} 59. Kh2 {[%clk 0:00:12]} 1/2-1/2

[Event "December 19 Early 2023"]
[Site "https://www.chess.com"]
[Date "2023.12.19"]
[Round "10"]
[White "Matinian, Nikita"]
[Black "Shuvalov, Evgenij"]
[Result "1-0"]
[Board "58"]
[TimeControl "180+1"]
[WhiteFideId "24129100"]
[BlackFideId "4187237"]
[WhiteElo "2417"]
[BlackElo "2084"]
[WhiteTeam "FID"]
[BlackTeam "FID"]
[WhiteClock "0:01:49"]
[BlackClock "0:00:00"]

1. e4 {[%clk 0:03:00]}  e6 {[%clk 0:02:55]} 2. d4 {[%clk 0:03:00]}  d5 {[%clk 0:02:55]} 3. Nc3 {[%clk 0:03:01]}  Bc5 {[%clk 0:02:53]} 4. Nf3 {[%clk 0:02:55]}  Bb4 {[%clk 0:02:51]} 5. Bd3 {[%clk 0:02:54]}  c5 {[%clk 0:02:40]} 6. dxc5 {[%clk 0:02:49]}  Nf6 {[%clk 0:02:34]} 7. exd5 {[%clk 0:02:48]}  exd5 {[%clk 0:02:33]} 8. Qe2+ {[%clk 0:02:45]}  Be6 {[%clk 0:02:32]} 9. Ng5 {[%clk 0:02:42]}  Qe7 {[%clk 0:02:28]} 10. O-O {[%clk 0:02:36]}  O-O {[%clk 0:02:23]} 11. Nxd5 {[%clk 0:02:09]}  Nxd5 {[%clk 0:01:57]} 12. Bxh7+ {[%clk 0:02:09]}  Kh8 {[%clk 0:01:57]} 13. Qh5 {[%clk 0:02:09]}  Nf6 {[%clk 0:01:56]} 14. Qh4 {[%clk 0:02:09]}  Bxc5 {[%clk 0:01:31]} 15. Be3 {[%clk 0:02:00]}  Rc8 {[%clk 0:01:23]} 16. Rae1 {[%clk 0:01:58]}  Nbd7 {[%clk 0:01:19]} 17. Bxc5 {[%clk 0:01:50]}  Rxc5 {[%clk 0:00:13]} 18. Rxe6 {[%clk 0:01:49]}  fxe6 {[%clk 0:00:05]} 19. Bf5+ {[%clk 0:01:48]}  Kg8 {[%clk 0:00:04]} 20. Bxe6+ {[%clk 0:01:48]}  Qxe6 {[%clk 0:00:00]} 21. Nxe6 {[%clk 0:01:49]} 1-0

[Event "December 19 Early 2023"]
[Site "https://www.chess.com"]
[Date "2023.12.19"]
[Round "10"]
[White "Waldhausen Gordon, Frederick"]
[Black "Kozak, Antoni"]
[Result "0-1"]
[Board "59"]
[TimeControl "180+1"]
[WhiteFideId "2409143"]
[BlackFideId "21832030"]
[WhiteElo "2286"]
[BlackElo "2470"]
[WhiteTeam "SCO"]
[BlackTeam "POL"]
[WhiteClock "0:01:14"]
[BlackClock "0:00:01"]

1. d4 {[%clk 0:03:00]}  Nf6 {[%clk 0:02:59]} 2. Nf3 {[%clk 0:03:01]}  e6 {[%clk 0:03:00]} 3. c4 {[%clk 0:03:01]}  d5 {[%clk 0:03:00]} 4. Nc3 {[%clk 0:03:02]}  Nbd7 {[%clk 0:03:01]} 5. Bf4 {[%clk 0:03:01]}  Bb4 {[%clk 0:02:59]} 6. Qb3 {[%clk 0:02:58]}  c5 {[%clk 0:02:58]} 7. dxc5 {[%clk 0:02:57]}  a5 {[%clk 0:02:58]} 8. a3 {[%clk 0:02:52]}  Nxc5 {[%clk 0:02:38]} 9. Qc2 {[%clk 0:02:51]}  Bxc3+ {[%clk 0:02:36]} 10. Qxc3 {[%clk 0:02:52]}  O-O {[%clk 0:02:34]} 11. e3 {[%clk 0:02:51]}  a4 {[%clk 0:02:32]} 12. Rd1 {[%clk 0:02:44]}  Nfe4 {[%clk 0:02:32]} 13. Qb4 {[%clk 0:02:41]}  Ra6 {[%clk 0:02:31]} 14. cxd5 {[%clk 0:02:38]}  Rb6 {[%clk 0:02:29]} 15. Qd4 {[%clk 0:02:37]}  exd5 {[%clk 0:02:12]} 16. Be2 {[%clk 0:02:33]}  Ne6 {[%clk 0:02:03]} 17. Qxa4 {[%clk 0:02:27]}  Rxb2 {[%clk 0:02:00]} 18. Be5 {[%clk 0:02:24]}  Bd7 {[%clk 0:01:34]} 19. Qa7 {[%clk 0:02:09]}  d4 {[%clk 0:01:29]} 20. Bxd4 {[%clk 0:01:55]}  Nxd4 {[%clk 0:00:56]} 21. Qxd4 {[%clk 0:01:54]}  Qa5+ {[%clk 0:00:56]} 22. Kf1 {[%clk 0:01:54]}  Rxe2 {[%clk 0:00:52]} 23. Qxe4 {[%clk 0:01:39]}  Bb5 {[%clk 0:00:44]} 24. Kg1 {[%clk 0:01:36]}  Qxa3 {[%clk 0:00:32]} 25. Qxb7 {[%clk 0:01:35]}  Qb2 {[%clk 0:00:13]} 26. Nd4 {[%clk 0:01:20]}  Qd2 {[%clk 0:00:06]} 27. Rf1 {[%clk 0:01:18]}  Rxf2 {[%clk 0:00:02]} 28. Qxb5 {[%clk 0:01:14]}  Rxg2# {[%clk 0:00:01]} 0-1

[Event "December 19 Early 2023"]
[Site "https://www.chess.com"]
[Date "2023.12.19"]
[Round "10"]
[White "Chan, Yi Ren Daniel"]
[Black "Santos Flores, Alberto"]
[Result "1-0"]
[Board "60"]
[TimeControl "180+1"]
[WhiteFideId "5801583"]
[BlackFideId "3601234"]
[WhiteElo "2375"]
[BlackElo "2229"]
[WhiteTeam "SGP"]
[BlackTeam "ECU"]
[WhiteClock "0:00:15"]
[BlackClock "0:00:00"]

1. e4 {[%clk 0:03:00]}  e6 {[%clk 0:02:54]} 2. Nf3 {[%clk 0:03:01]}  d5 {[%clk 0:02:54]} 3. Nc3 {[%clk 0:03:02]}  Nf6 {[%clk 0:02:53]} 4. e5 {[%clk 0:03:02]}  Ne4 {[%clk 0:02:51]} 5. d3 {[%clk 0:02:52]}  Nxc3 {[%clk 0:02:50]} 6. bxc3 {[%clk 0:02:53]}  c5 {[%clk 0:02:48]} 7. d4 {[%clk 0:02:52]}  Nc6 {[%clk 0:02:40]} 8. Bb5 {[%clk 0:02:52]}  Bd7 {[%clk 0:02:39]} 9. Bxc6 {[%clk 0:02:49]}  Bxc6 {[%clk 0:02:31]} 10. O-O {[%clk 0:02:50]}  Bb5 {[%clk 0:02:31]} 11. Re1 {[%clk 0:02:50]}  Be7 {[%clk 0:02:30]} 12. a4 {[%clk 0:02:50]}  Ba6 {[%clk 0:02:30]} 13. h3 {[%clk 0:02:37]}  Rc8 {[%clk 0:02:29]} 14. Nh2 {[%clk 0:02:36]}  Qc7 {[%clk 0:02:24]} 15. Be3 {[%clk 0:02:27]}  cxd4 {[%clk 0:02:17]} 16. Bxd4 {[%clk 0:02:28]}  Bc5 {[%clk 0:02:17]} 17. Qg4 {[%clk 0:02:25]}  O-O {[%clk 0:02:17]} 18. Re3 {[%clk 0:01:55]}  Bxd4 {[%clk 0:02:12]} 19. cxd4 {[%clk 0:01:55]}  Qxc2 {[%clk 0:02:10]} 20. Rg3 {[%clk 0:01:56]}  g6 {[%clk 0:02:07]} 21. Qg5 {[%clk 0:01:47]}  Qb2 {[%clk 0:01:56]} 22. Re1 {[%clk 0:01:43]}  Qxd4 {[%clk 0:01:53]} 23. Ng4 {[%clk 0:01:40]}  Rc2 {[%clk 0:01:14]} 24. Nh6+ {[%clk 0:01:37]}  Kg7 {[%clk 0:01:14]} 25. Qf6+ {[%clk 0:01:37]}  Kxh6 {[%clk 0:01:15]} 26. Rg4 {[%clk 0:01:32]}  Qxf2+ {[%clk 0:01:12]} 27. Qxf2 {[%clk 0:01:32]}  Rxf2 {[%clk 0:01:12]} 28. Kxf2 {[%clk 0:01:32]}  Rc8 {[%clk 0:01:12]} 29. Rf4 {[%clk 0:01:24]}  Kg7 {[%clk 0:01:10]} 30. Re3 {[%clk 0:01:23]}  Rc4 {[%clk 0:01:03]} 31. Rf6 {[%clk 0:01:18]}  Rc7 {[%clk 0:00:52]} 32. g4 {[%clk 0:01:18]}  d4 {[%clk 0:00:48]} 33. Ref3 {[%clk 0:01:18]}  d3 {[%clk 0:00:48]} 34. Ke3 {[%clk 0:01:18]}  Rd7 {[%clk 0:00:44]} 35. Kd2 {[%clk 0:01:18]}  b6 {[%clk 0:00:33]} 36. h4 {[%clk 0:01:16]}  h6 {[%clk 0:00:30]} 37. R6f4 {[%clk 0:00:57]}  g5 {[%clk 0:00:20]} 38. hxg5 {[%clk 0:00:58]}  hxg5 {[%clk 0:00:21]} 39. Rf6 {[%clk 0:00:58]}  Bc4 {[%clk 0:00:20]} 40. Rh3 {[%clk 0:00:55]}  Rd5 {[%clk 0:00:17]} 41. Rhf3 {[%clk 0:00:52]}  Rd7 {[%clk 0:00:17]} 42. Rf2 {[%clk 0:00:52]}  a6 {[%clk 0:00:17]} 43. Kc3 {[%clk 0:00:40]}  b5 {[%clk 0:00:17]} 44. a5 {[%clk 0:00:41]}  Rc7 {[%clk 0:00:16]} 45. Rh2 {[%clk 0:00:34]}  Rc5 {[%clk 0:00:14]} 46. Rhf2 {[%clk 0:00:31]}  Rc7 {[%clk 0:00:14]} 47. Kd4 {[%clk 0:00:23]}  Rd7+ {[%clk 0:00:13]} 48. Ke3 {[%clk 0:00:23]}  b4 {[%clk 0:00:13]} 49. Rb2 {[%clk 0:00:20]}  b3 {[%clk 0:00:12]} 50. Kd2 {[%clk 0:00:21]}  Rd5 {[%clk 0:00:11]} 51. Kc3 {[%clk 0:00:21]}  Bb5 {[%clk 0:00:10]} 52. Rbf2 {[%clk 0:00:22]}  Rd7 {[%clk 0:00:10]} 53. R6f3 {[%clk 0:00:20]}  d2 {[%clk 0:00:08]} 54. Rxd2 {[%clk 0:00:20]}  Rxd2 {[%clk 0:00:07]} 55. Kxd2 {[%clk 0:00:21]}  Bc4 {[%clk 0:00:08]} 56. Rc3 {[%clk 0:00:19]}  Bd5 {[%clk 0:00:07]} 57. Rc8 {[%clk 0:00:19]}  Kg6 {[%clk 0:00:06]} 58. Kc3 {[%clk 0:00:17]}  f6 {[%clk 0:00:05]} 59. exf6 {[%clk 0:00:16]}  Kxf6 {[%clk 0:00:06]} 60. Rc7 {[%clk 0:00:15]}  e5 {[%clk 0:00:05]} 61. Ra7 {[%clk 0:00:15]}  e4 {[%clk 0:00:06]} 62. Rxa6+ {[%clk 0:00:16]}  Ke5 {[%clk 0:00:07]} 63. Rb6 {[%clk 0:00:16]}  e3 {[%clk 0:00:07]} 64. Kd3 {[%clk 0:00:17]}  Kf4 {[%clk 0:00:07]} 65. a6 {[%clk 0:00:17]}  Kf3 {[%clk 0:00:07]} 66. Rf6+ {[%clk 0:00:16]}  Kxg4 {[%clk 0:00:07]} 67. Kxe3 {[%clk 0:00:16]}  b2 {[%clk 0:00:07]} 68. Rb6 {[%clk 0:00:17]}  Kh3 {[%clk 0:00:06]} 69. Rxb2 {[%clk 0:00:17]}  g4 {[%clk 0:00:07]} 70. Rb5 {[%clk 0:00:17]}  Ba8 {[%clk 0:00:06]} 71. Rh5+ {[%clk 0:00:16]}  Kg2 {[%clk 0:00:06]} 72. Kf4 {[%clk 0:00:16]}  Bf3 {[%clk 0:00:05]} 73. Rg5 {[%clk 0:00:16]}  Kf2 {[%clk 0:00:00]} 74. Rxg4 {[%clk 0:00:15]} 1-0

[Event "December 19 Early 2023"]
[Site "https://www.chess.com"]
[Date "2023.12.19"]
[Round "10"]
[White "Bardyk, Artem"]
[Black "Rangel, Daniel"]
[Result "1-0"]
[Board "62"]
[TimeControl "180+1"]
[WhiteFideId "34349979"]
[BlackFideId "2124475"]
[WhiteElo "2300"]
[BlackElo "2267"]
[WhiteTeam "RUS"]
[BlackTeam "BRA"]
[WhiteClock "0:01:32"]
[BlackClock "0:00:00"]

1. e4 {[%clk 0:03:00]}  c5 {[%clk 0:02:58]} 2. c3 {[%clk 0:02:59]}  g6 {[%clk 0:02:59]} 3. d4 {[%clk 0:02:59]}  cxd4 {[%clk 0:03:00]} 4. cxd4 {[%clk 0:02:59]}  d5 {[%clk 0:02:59]} 5. e5 {[%clk 0:02:58]}  Bg7 {[%clk 0:02:57]} 6. Nc3 {[%clk 0:02:58]}  Nc6 {[%clk 0:02:56]} 7. h3 {[%clk 0:02:56]}  Nh6 {[%clk 0:02:55]} 8. Nf3 {[%clk 0:02:56]}  O-O {[%clk 0:02:55]} 9. Bb5 {[%clk 0:02:56]}  f6 {[%clk 0:02:55]} 10. Bxc6 {[%clk 0:02:56]}  bxc6 {[%clk 0:02:54]} 11. O-O {[%clk 0:02:57]}  Nf7 {[%clk 0:02:54]} 12. exf6 {[%clk 0:02:54]}  exf6 {[%clk 0:02:53]} 13. Re1 {[%clk 0:02:52]}  Re8 {[%clk 0:02:49]} 14. Bf4 {[%clk 0:02:47]}  Bf5 {[%clk 0:02:38]} 15. Qa4 {[%clk 0:02:44]}  Qb6 {[%clk 0:02:30]} 16. b3 {[%clk 0:02:30]}  Be4 {[%clk 0:02:18]} 17. Nd2 {[%clk 0:02:23]}  Bd3 {[%clk 0:02:07]} 18. Rxe8+ {[%clk 0:02:17]}  Rxe8 {[%clk 0:02:06]} 19. Nxd5 {[%clk 0:02:18]}  Qb5 {[%clk 0:01:43]} 20. Qxb5 {[%clk 0:02:16]}  cxb5 {[%clk 0:01:43]} 21. Rc1 {[%clk 0:02:11]}  Rd8 {[%clk 0:01:22]} 22. Ne7+ {[%clk 0:02:08]}  Kf8 {[%clk 0:01:20]} 23. Nc6 {[%clk 0:02:09]}  Rc8 {[%clk 0:01:13]} 24. d5 {[%clk 0:02:06]}  g5 {[%clk 0:01:12]} 25. Be3 {[%clk 0:02:05]}  Ne5 {[%clk 0:00:51]} 26. Bxa7 {[%clk 0:01:57]}  Nxc6 {[%clk 0:00:44]} 27. Rxc6 {[%clk 0:01:53]}  Rxc6 {[%clk 0:00:37]} 28. dxc6 {[%clk 0:01:54]}  Ke7 {[%clk 0:00:36]} 29. Bc5+ {[%clk 0:01:49]}  Kd8 {[%clk 0:00:35]} 30. Bb6+ {[%clk 0:01:45]}  Kc8 {[%clk 0:00:32]} 31. a4 {[%clk 0:01:46]}  bxa4 {[%clk 0:00:24]} 32. bxa4 {[%clk 0:01:47]}  f5 {[%clk 0:00:24]} 33. a5 {[%clk 0:01:47]}  Bb5 {[%clk 0:00:23]} 34. c7 {[%clk 0:01:47]}  g4 {[%clk 0:00:17]} 35. hxg4 {[%clk 0:01:46]}  fxg4 {[%clk 0:00:18]} 36. Ne4 {[%clk 0:01:46]}  Be5 {[%clk 0:00:15]} 37. Ng5 {[%clk 0:01:46]}  h5 {[%clk 0:00:12]} 38. Nf7 {[%clk 0:01:44]}  Bf4 {[%clk 0:00:08]} 39. g3 {[%clk 0:01:33]}  Bc1 {[%clk 0:00:00]} 40. Nd6+ {[%clk 0:01:32]} 1-0

[Event "December 19 Early 2023"]
[Site "https://www.chess.com"]
[Date "2023.12.19"]
[Round "10"]
[White "Feuerstack, Aljoscha"]
[Black "Herman, Matthew"]
[Result "1-0"]
[Board "63"]
[TimeControl "180+1"]
[WhiteFideId "4681932"]
[BlackFideId "2028964"]
[WhiteElo "2418"]
[BlackElo "2368"]
[WhiteTeam "GER"]
[BlackTeam "USA"]
[WhiteClock "0:00:06"]
[BlackClock "0:00:00"]

1. e4 {[%clk 0:03:00]}  e5 {[%clk 0:03:00]} 2. Bc4 {[%clk 0:03:00]}  Nf6 {[%clk 0:02:58]} 3. d3 {[%clk 0:03:00]}  c6 {[%clk 0:02:58]} 4. Nf3 {[%clk 0:03:00]}  d6 {[%clk 0:02:56]} 5. O-O {[%clk 0:02:59]}  g6 {[%clk 0:02:55]} 6. d4 {[%clk 0:02:42]}  Nxe4 {[%clk 0:02:33]} 7. Re1 {[%clk 0:02:23]}  d5 {[%clk 0:02:32]} 8. Rxe4 {[%clk 0:02:20]}  dxc4 {[%clk 0:01:57]} 9. Rxe5+ {[%clk 0:02:09]}  Be6 {[%clk 0:01:57]} 10. Bg5 {[%clk 0:01:20]}  Be7 {[%clk 0:01:41]} 11. Bh6 {[%clk 0:01:13]}  Nd7 {[%clk 0:01:38]} 12. Rxe6 {[%clk 0:00:51]}  fxe6 {[%clk 0:01:38]} 13. Qe2 {[%clk 0:00:52]}  Nf8 {[%clk 0:01:32]} 14. Nc3 {[%clk 0:00:47]}  Bf6 {[%clk 0:01:20]} 15. Qxc4 {[%clk 0:00:40]}  Qc7 {[%clk 0:00:30]} 16. Ne4 {[%clk 0:00:18]}  Be7 {[%clk 0:00:26]} 17. Bg7 {[%clk 0:00:16]}  Rg8 {[%clk 0:00:23]} 18. Bxf8 {[%clk 0:00:12]}  Rxf8 {[%clk 0:00:13]} 19. Qxe6 {[%clk 0:00:13]}  Qd7 {[%clk 0:00:12]} 20. Qc4 {[%clk 0:00:10]}  O-O-O {[%clk 0:00:13]} 21. c3 {[%clk 0:00:10]}  Qf5 {[%clk 0:00:11]} 22. Re1 {[%clk 0:00:07]}  Rde8 {[%clk 0:00:11]} 23. Ned2 {[%clk 0:00:06]}  Bd6 {[%clk 0:00:09]} 24. Rxe8+ {[%clk 0:00:06]}  Rxe8 {[%clk 0:00:10]} 25. h3 {[%clk 0:00:07]}  Qc2 {[%clk 0:00:06]} 26. Qf7 {[%clk 0:00:05]}  Re7 {[%clk 0:00:02]} 27. Qg8+ {[%clk 0:00:03]}  Kd7 {[%clk 0:00:03]} 28. Qa8 {[%clk 0:00:02]}  Qd1+ {[%clk 0:00:03]} 29. Nf1 {[%clk 0:00:02]}  Qe2 {[%clk 0:00:04]} 30. Qxb7+ {[%clk 0:00:02]}  Ke6 {[%clk 0:00:05]} 31. Qxc6 {[%clk 0:00:02]}  Qxb2 {[%clk 0:00:05]} 32. Qc4+ {[%clk 0:00:02]}  Kd7 {[%clk 0:00:04]} 33. Ne3 {[%clk 0:00:03]}  Qb1+ {[%clk 0:00:04]} 34. Nf1 {[%clk 0:00:02]}  Qe4 {[%clk 0:00:05]} 35. N3d2 {[%clk 0:00:02]}  Qe2 {[%clk 0:00:05]} 36. Qa4+ {[%clk 0:00:03]}  Kd8 {[%clk 0:00:05]} 37. Qa5+ {[%clk 0:00:03]}  Ke8 {[%clk 0:00:04]} 38. Qd5 {[%clk 0:00:03]}  Bc7 {[%clk 0:00:04]} 39. Nf3 {[%clk 0:00:02]}  Qd1 {[%clk 0:00:04]} 40. Qc6+ {[%clk 0:00:03]}  Kf8 {[%clk 0:00:04]} 41. d5 {[%clk 0:00:03]}  Qd3 {[%clk 0:00:04]} 42. Ne3 {[%clk 0:00:03]}  Qb1+ {[%clk 0:00:03]} 43. Nf1 {[%clk 0:00:03]}  Qd3 {[%clk 0:00:03]} 44. N3d2 {[%clk 0:00:04]}  Kg7 {[%clk 0:00:02]} 45. Qc5 {[%clk 0:00:04]}  Kf7 {[%clk 0:00:02]} 46. c4 {[%clk 0:00:05]}  Be5 {[%clk 0:00:02]} 47. Qc6 {[%clk 0:00:05]}  Bd4 {[%clk 0:00:02]} 48. Nf3 {[%clk 0:00:05]}  Bb6 {[%clk 0:00:02]} 49. Ng5+ {[%clk 0:00:05]}  Kg7 {[%clk 0:00:00]} 50. Ne6+ {[%clk 0:00:06]} 1-0